bitfinex/quotes_ETHUSD_20240630
["timestamp","ask_amount","ask_price","bid_price","bid_amount"]
[1719755390058,0.851,3398.8,3398.3,2.5492]
[1719755390367,0.21423448,3398.7,3398.3,2.5492]
[1719755393374,0.21422736,3398.7,3398.3,2.5492]
[1719755393575,0.21422674,3398.7,3398.3,2.5492]
[1719755394505,0.21422674,3398.7,3398.3,0.148]
[1719755396589,0.21422479,3398.7,3398.3,0.148]
[1719755396791,0.21422479,3398.7,3398.4,2.3306]
[1719755397185,7.33,3399.3,3398.6,2.3306]
[1719755397186,0.21422479,3399.1,3398.6,2.3306]
[1719755397530,0.851,3398.8,3398.6,2.3306]
[1719755397732,0.21422479,3398.7,3398.6,2.3306]
[1719755398016,0.21422479,3398.7,3398.4,2.3306]
[1719755398377,0.21422479,3398.9,3398.4,2.3306]
[1719755399612,0.851,3399.0,3398.4,2.3306]
[1719755399774,0.2142154,3398.9,3398.4,2.3306]
[1719755400181,0.21421547,3398.9,3398.4,2.3306]
[1719755401978,0.21421895,3398.9,3398.4,2.3306]
[1719755402923,1.06521895,3399.0,3398.4,2.3306]
[1719755403101,0.21421895,3398.9,3398.4,2.57846]
[1719755403426,0.21421895,3399.0,3398.4,2.57846]
[1719755403728,0.21421895,3399.1,3398.4,2.57846]
[1719755404519,0.21421895,3399.1,3398.4,2.3306]
[1719755404733,0.851,3399.0,3398.4,2.3306]
[1719755405183,0.21421384,3398.9,3398.4,2.3306]
[1719755407522,0.21421384,3398.9,3398.3,0.148]
[1719755408325,0.2142278,3398.9,3398.3,0.148]
[1719755408527,0.851,3398.8,3398.3,0.148]
[1719755408693,0.2142278,3398.7,3398.3,0.148]
[1719755411400,0.851,3398.8,3398.3,0.148]
[1719755411725,0.21422562,3398.7,3398.3,0.148]
[1719755411891,0.21422622,3398.7,3398.3,0.148]
[1719755413537,0.21422622,3398.7,3398.4,2.3148]
[1719755413865,3.0,3399.1,3398.4,2.3148]
[1719755413866,0.21422622,3398.9,3398.4,2.3148]
[1719755414032,0.21422622,3399.0,3398.4,2.3148]
[1719755414725,0.21419929,3399.0,3398.4,2.3148]
[1719755416081,0.21419929,3399.0,3398.4,2.64618]
[1719755416285,0.21419929,3399.1,3398.4,2.64618]
[1719755417945,0.21419619,3399.1,3398.4,2.64618]
[1719755420398,3.851,3399.2,3398.4,2.64618]
[1719755420629,3.851,3399.2,3398.4,2.3148]
[1719755420807,0.851,3399.0,3398.4,2.3148]
[1719755421226,0.851,3398.8,3398.4,2.3148]
[1719755421726,0.851,3398.6,3398.3,0.148]
[1719755421932,0.851,3398.5,3398.3,0.148]
[1719755425445,1.38362,3398.8,3398.3,0.148]
[1719755426939,0.851,3398.6,3398.3,0.148]
[1719755427151,1.289362,3398.6,3398.3,0.148]
[1719755430650,0.851,3398.4,3398.3,0.148]
[1719755430946,3.851,3398.4,3398.3,0.148]
[1719755434555,3.0,3398.4,3398.3,0.148]
[1719755434760,5.3565,3398.9,3398.3,0.148]
[1719755434957,1.46865282,3398.8,3398.3,0.148]
[1719755435654,0.61765282,3398.8,3398.3,0.148]
[1719755435968,0.851,3399.0,3398.3,0.148]
[1719755438443,0.851,3398.8,3398.3,0.148]
[1719755439244,0.43114242,3399.0,3398.3,0.148]
[1719755439429,0.851,3398.9,3398.3,0.148]
[1719755440035,0.43114242,3399.0,3398.4,2.4172]
[1719755440359,3.0,3399.2,3398.5,0.34162]
[1719755440573,3.0,3399.2,3398.4,2.4172]
[1719755441818,0.851,3399.1,3398.4,2.4172]
[1719755443733,3.0,3399.2,3398.4,2.4172]
[1719755444421,3.0,3399.2,3398.4,3.2682]
[1719755444922,0.21419811,3399.1,3398.4,3.2682]
[1719755445132,0.21419811,3399.1,3398.4,1.19262]
[1719755445335,0.21419811,3399.1,3398.5,2.4172]
[1719755447369,3.0,3399.2,3398.5,2.4172]
[1719755447572,0.21419891,3399.1,3398.5,2.4172]
[1719755449871,1.06519891,3399.1,3398.5,2.4172]
[1719755450075,0.21419891,3399.0,3398.5,2.4172]
[1719755450374,0.54072409,3398.9,3398.5,2.4172]
[1719755450579,1.28214242,3399.1,3398.5,2.4172]
[1719755450731,0.21421734,3399.0,3398.5,2.4172]
[1719755452632,0.851,3398.9,3398.5,2.4172]
[1719755452965,1.06521734,3398.8,3398.3,2.4215]
[1719755453136,0.36385332,3398.7,3398.3,2.4215]
[1719755453769,0.14963598,3398.7,3398.3,2.4215]
[1719755453929,0.36387317,3398.7,3398.3,2.4215]
[1719755454129,0.851,3398.6,3398.3,0.148]
[1719755454351,0.21423719,3398.5,3398.3,0.148]
[1719755454669,0.61554875,3398.5,3398.3,0.148]
[1719755455363,0.21423719,3398.5,3398.3,0.148]
[1719755455526,0.43114242,3398.7,3398.3,0.148]
[1719755455527,0.21423719,3398.7,3398.3,0.148]
[1719755455927,3.21423719,3398.7,3398.3,0.148]
[1719755456279,0.21423719,3398.6,3398.3,0.148]
[1719755456457,0.21423719,3398.7,3398.3,0.148]
[1719755457155,0.21423391,3398.7,3398.3,0.148]
[1719755457547,0.21423145,3398.7,3398.4,2.2735]
[1719755457741,0.21423145,3398.9,3398.4,2.2735]
[1719755458040,0.77669058,3398.9,3398.4,2.2735]
[1719755460130,0.56245913,3398.9,3398.4,2.2735]
[1719755460333,0.21421685,3398.9,3398.4,2.2735]
[1719755460536,0.21421685,3399.0,3398.4,2.2735]
[1719755461373,0.851,3398.9,3398.4,2.2735]
[1719755461548,0.21421685,3398.8,3398.4,2.2735]
[1719755462657,0.21422349,3398.8,3398.4,2.2735]
[1719755464377,0.21422349,3399.0,3398.4,2.2735]
[1719755464961,0.64536591,3399.0,3398.4,2.2735]
[1719755465350,0.851,3398.9,3398.4,2.2735]
[1719755465545,0.21422349,3398.8,3398.4,2.2735]
[1719755465749,0.43114242,3399.0,3398.4,2.2735]
[1719755465750,1.28214242,3399.0,3398.4,2.2735]
[1719755465949,0.21421613,3398.9,3398.4,2.2735]
[1719755467481,0.21421613,3398.9,3398.4,2.51565]
[1719755467679,0.43114242,3399.0,3398.4,2.51565]
[1719755467680,0.64535855,3399.0,3398.4,2.51565]
[1719755468086,0.2142075,3398.9,3398.4,2.51565]
[1719755468242,0.64534992,3399.0,3398.4,2.51565]
[1719755469150,0.21420477,3398.9,3398.4,2.51565]
[1719755469351,0.64534719,3399.0,3398.4,2.51565]
[1719755469579,3.0,3399.1,3398.4,2.51565]
[1719755469754,3.851,3399.2,3398.4,2.51565]
[1719755470051,0.21420259,3399.1,3398.4,2.51565]
[1719755470264,0.21420005,3399.1,3398.4,2.51565]
[1719755470469,3.851,3399.2,3398.4,2.51565]
[1719755471498,0.21419892,3399.1,3398.4,2.51565]
[1719755471666,0.21419895,3399.1,3398.5,0.351465]
[1719755471868,3.0,3399.2,3398.6,2.3959]
[1719755472556,0.21419546,3399.1,3398.6,2.3959]
[1719755474199,0.21419375,3399.1,3398.6,2.3959]
[1719755476005,0.21419383,3399.1,3398.6,2.3959]
[1719755476857,1.06519383,3399.1,3398.6,2.3959]
[1719755477058,0.21419383,3399.0,3398.6,2.3959]
[1719755478281,0.851,3398.9,3398.3,0.148]
[1719755478561,0.21419383,3398.8,3398.3,0.148]
[1719755478759,0.64533625,3398.8,3398.3,0.148]
[1719755478962,0.43114242,3398.8,3398.3,0.148]
[1719755479160,0.64536843,3398.8,3398.3,0.148]
[1719755479597,0.43114242,3398.8,3398.3,0.148]
[1719755484676,0.64536577,3398.8,3398.3,0.148]
[1719755485022,0.21422335,3398.7,3398.3,0.148]
[1719755485221,0.43114242,3398.8,3398.3,0.48749]
[1719755485791,0.64536577,3398.8,3398.3,0.48749]
[1719755486040,0.21420301,3398.7,3398.3,0.48749]
[1719755486177,0.43114242,3398.8,3398.3,0.48749]
[1719755486531,0.43114242,3398.8,3398.4,0.373439]
[1719755486880,0.64534543,3398.8,3398.4,0.373439]
[1719755487079,0.21420301,3398.7,3398.5,2.3959]
[1719755487278,0.21420301,3399.1,3398.5,2.3959]
[1719755487479,0.64534543,3399.1,3398.5,2.3959]
[1719755488291,0.64534543,3399.1,3398.5,2.73539]
[1719755488503,0.21419481,3399.0,3398.5,2.73539]
[1719755488703,0.64533723,3399.1,3398.5,2.73539]
[1719755489525,0.21419561,3399.0,3398.5,2.73539]
[1719755489723,0.64533803,3399.1,3398.7,2.2799]
[1719755490034,0.21419623,3399.0,3398.7,2.2799]
[1719755490185,0.64533865,3399.1,3398.7,2.2799]
[1719755490528,0.21419625,3399.0,3398.7,2.2799]
[1719755490728,3.0,3399.2,3398.7,3.4813339]
[1719755490941,3.0,3399.2,3398.8,2.2799]
[1719755491229,0.21419058,3399.1,3398.8,2.2799]
[1719755491450,3.0,3399.2,3398.8,2.2799]
[1719755491731,3.0,3399.2,3398.9,0.34813339]
[1719755491732,0.21418996,3399.1,3398.9,0.34813339]
[1719755491938,0.21418885,3399.1,3398.9,0.34813339]
[1719755492087,3.0,3399.2,3398.9,0.34813339]
[1719755492286,3.0,3399.2,3398.8,2.2799]
[1719755492287,0.21418923,3399.1,3398.8,2.2799]
[1719755492531,0.21419045,3399.1,3398.8,2.2799]
[1719755493026,0.21418619,3399.1,3398.8,2.2799]
[1719755495750,0.21418619,3399.1,3398.5,3.1309]
[1719755496045,0.64532861,3399.1,3398.5,2.2799]
[1719755496230,0.43114242,3399.1,3398.5,2.2799]
[1719755496553,1.80655856,3399.1,3398.5,2.2799]
[1719755496762,0.2142019,3399.0,3398.5,2.2799]
[1719755499566,0.21420651,3399.0,3398.5,2.2799]
[1719755499919,4.59235666,3399.1,3398.5,2.2799]
[1719755500114,0.21420642,3399.0,3398.5,2.2799]
[1719755500314,4.59235666,3399.1,3398.5,2.2799]
[1719755500511,3.35891578,3399.0,3398.5,2.2799]
[1719755500742,0.21420898,3398.9,3398.5,2.2799]
[1719755500910,0.35891578,3399.0,3398.5,2.2799]
[1719755500911,0.57312457,3399.0,3398.5,2.2799]
[1719755501119,0.35891578,3399.0,3398.5,2.2799]
[1719755501321,0.57312492,3399.0,3398.5,2.2799]
[1719755501570,0.57312502,3399.0,3398.5,2.2799]
[1719755501955,0.57312482,3399.0,3398.5,2.2799]
[1719755502155,0.35891578,3399.0,3398.5,2.2799]
[1719755502337,0.57312494,3399.0,3398.5,2.2799]
[1719755502537,0.35891578,3399.0,3398.5,2.2799]
[1719755502988,0.57312775,3399.0,3398.5,2.2799]
[1719755503785,0.57312775,3399.0,3398.3,2.5018]
[1719755504087,0.53464755,3398.9,3398.3,2.5018]
[1719755504303,0.74885952,3398.9,3398.3,2.5018]
[1719755506357,3.7900582,3399.0,3398.3,2.5018]
[1719755506693,0.21421299,3398.9,3398.3,2.5018]
[1719755508095,0.21421327,3398.9,3398.3,2.5018]
[1719755509791,0.21421655,3398.9,3398.3,2.5018]
[1719755510152,3.43114242,3399.0,3398.3,2.5018]
[1719755511187,0.21421423,3398.9,3398.3,2.5018]
[1719755511358,3.43114242,3399.0,3398.3,2.5018]
[1719755511572,0.21421495,3398.9,3398.3,2.5018]
[1719755511920,0.43114242,3399.0,3398.3,2.5018]
[1719755512121,3.0,3398.9,3398.3,2.5018]
[1719755512303,0.43114242,3399.0,3398.3,2.5018]
[1719755512830,0.6453554,3399.0,3398.3,2.83708]
[1719755513125,0.21421298,3398.9,3398.3,2.83708]
[1719755513332,0.21420624,3398.9,3398.3,2.83708]
[1719755513492,0.43114242,3399.0,3398.3,2.83708]
[1719755514189,0.43114242,3399.0,3398.4,0.368808]
[1719755515111,0.21420624,3399.1,3398.5,2.3245]
[1719755515989,0.21420624,3399.1,3398.7,2.3245]
[1719755516408,0.21419056,3399.1,3398.7,2.3245]
[1719755517321,0.21419056,3399.1,3398.8,0.851]
[1719755517494,0.21419056,3399.1,3398.9,2.3245]
[1719755518728,0.64533298,3399.4,3398.9,2.3245]
[1719755519722,0.21417683,3399.3,3398.9,2.3245]
[1719755519927,0.43114242,3399.4,3398.9,2.3245]
[1719755519928,0.64531925,3399.4,3398.9,2.3245]
[1719755520132,0.43114242,3399.4,3398.9,2.3245]
[1719755520625,0.64531616,3399.4,3398.9,2.3245]
[1719755520792,0.43114242,3399.4,3398.9,2.3245]
[1719755520990,0.43114242,3399.4,3398.9,2.64205]
[1719755520991,0.42987684,3399.4,3398.9,2.64205]
[1719755521534,1.34172743,3399.5,3399.0,0.851]
[1719755521694,0.21416026,3399.4,3399.0,0.851]
[1719755521893,1.34172743,3399.5,3399.1,0.349305]
[1719755522099,0.21416873,3399.4,3399.1,0.349305]
[1719755522307,1.29172743,3399.5,3399.1,0.349305]
[1719755522622,0.42834272,3399.4,3398.9,2.3245]
[1719755522833,0.4283552,3399.4,3398.9,2.3245]
[1719755523130,0.85938964,3399.4,3398.9,2.3245]
[1719755523432,0.21418285,3399.3,3398.9,2.3245]
[1719755523718,0.64520679,3399.4,3398.9,2.3245]
[1719755526583,0.59520679,3399.4,3398.9,2.3245]
[1719755530830,2.74373696,3399.3,3398.4,2.4803]
[1719755531002,3.0,3399.2,3398.4,3.3313]
[1719755531395,2.95,3399.2,3398.4,3.3313]
[1719755531628,2.95,3399.2,3398.5,0.34793]
[1719755533204,0.43103696,3399.3,3398.6,2.4803]
[1719755538231,3.59473696,3399.3,3398.6,2.4803]
[1719755538433,0.851,3399.1,3398.6,2.4803]
[1719755538662,1.28203696,3399.1,3398.6,2.4803]
[1719755538819,1.94151066,3399.1,3398.6,2.4803]
[1719755539856,0.43103696,3399.1,3398.7,0.851]
[1719755540036,3.0,3399.5,3399.0,2.4803]
[1719755540246,3.0,3399.5,3399.0,2.81343]
[1719755540446,3.0,3399.5,3399.0,2.4803]
[1719755541237,5.74373696,3399.5,3398.8,2.4803]
[1719755541429,0.43103696,3399.4,3398.8,2.4803]
[1719755543630,1.28203696,3399.4,3398.8,2.4803]
[1719755543968,4.28203696,3399.4,3398.8,2.4803]
[1719755545165,3.43103696,3399.4,3398.8,2.4803]
[1719755552003,3.0,3399.3,3398.8,2.4803]
[1719755552183,0.43103696,3399.4,3398.8,2.4803]
[1719755558596,0.43103696,3399.4,3398.6,2.2863]
[1719755558597,0.851,3399.3,3398.6,2.2863]
[1719755558799,3.66253696,3399.3,3398.6,2.2863]
[1719755558961,3.0,3399.2,3398.6,2.2863]
[1719755566692,3.7977644,3399.2,3398.4,2.2863]
[1719755567011,4.22880136,3399.2,3398.4,2.2863]
[1719755568229,3.43103696,3399.2,3398.4,2.2863]
[1719755572510,1.28203696,3399.1,3398.4,2.2863]
[1719755572673,2.3658,3399.0,3398.3,0.148]
[1719755573016,5.3658,3399.0,3398.3,0.148]
[1719755573170,5.79683696,3399.0,3398.3,0.148]
[1719755573367,0.43103696,3398.9,3398.3,0.148]
[1719755575077,0.851,3398.7,3398.3,0.148]
[1719755576286,2.3658,3398.6,3398.3,0.148]
[1719755576510,5.3658,3398.6,3398.3,0.148]
[1719755582614,3.0,3398.8,3398.3,0.148]
[1719755583153,0.43103696,3398.9,3398.3,0.148]
[1719755597342,4.31515958,3399.0,3398.3,1.34451]
[1719755597556,3.0,3399.0,3398.4,2.4538]
[1719755612818,3.0,3399.0,3398.5,0.851]
[1719755613132,3.0,3399.0,3398.7,2.3578]
[1719755613319,3.0,3399.0,3398.8,0.32088]
[1719755614204,3.0,3399.0,3398.9,2.3578]
[1719755615954,3.0,3399.0,3398.9,3.2088]
[1719755616235,7.33,3399.1,3398.9,3.2088]
[1719755616602,3.0,3399.4,3398.9,3.2088]
[1719755616797,4.31468817,3399.5,3399.0,0.352968]
[1719755617235,3.0,3399.5,3399.0,0.352968]
[1719755619300,3.0,3399.5,3398.9,2.3578]
[1719755621155,3.0,3399.5,3399.0,2.3578]
[1719755629481,3.0,3399.5,3399.0,0.851]
[1719755629694,3.0,3399.5,3399.1,2.292]
[1719755634893,3.0,3399.8,3399.1,2.292]
[1719755635392,3.0,3399.8,3399.2,0.3143]
[1719755635609,3.0,3399.8,3399.3,2.292]
[1719755635894,3.0,3399.8,3399.3,1.91189722]
[1719755666620,4.31444135,3399.8,3399.3,1.91189722]
[1719755666824,4.31444135,3399.8,3398.4,2.3589]
[1719755667137,4.31444135,3399.8,3399.0,2.3589]
[1719755667138,4.74547831,3399.8,3399.0,2.3589]
[1719755667522,3.43103696,3399.8,3399.0,2.3589]
[1719755667723,4.7455606,3399.8,3399.0,2.3589]
[1719755667922,7.1676606,3399.8,3399.0,2.3589]
[1719755668939,1.28203696,3399.7,3398.7,3.3471]
[1719755670112,0.851,3399.5,3398.7,2.4961]
[1719755670297,2.4221,3399.4,3398.7,2.4961]
[1719755673145,2.4221,3399.4,3398.5,3.59779]
[1719755673437,2.4221,3399.4,3398.6,0.374579]
[1719755674442,2.4221,3399.4,3398.7,0.851]
[1719755676718,2.4221,3399.4,3398.6,0.374579]
[1719755677036,2.4221,3399.4,3398.6,0.851]
[1719755680223,2.4221,3399.4,3398.8,0.851]
[1719755682922,2.4221,3399.4,3398.5,2.4961]
[1719755683237,2.4221,3399.4,3398.7,0.851]
[1719755689742,2.4221,3399.4,3398.5,2.4961]
[1719755689943,2.4221,3399.4,3398.7,0.851]
[1719755696383,2.4221,3399.4,3398.6,0.26441]
[1719755696552,2.4221,3399.4,3398.6,0.851]
[1719755707091,2.4221,3399.4,3398.3,0.148]
[1719755707304,2.4221,3399.4,3399.1,0.851]
[1719755707482,2.4221,3399.4,3398.9,0.851]
[1719755712632,4.31450242,3399.8,3399.1,0.851]
[1719755712633,2.3129,3399.7,3399.1,0.851]
[1719755713289,2.3129,3399.7,3399.1,1.18293]
[1719755717377,2.3129,3399.7,3399.1,0.851]
[1719755717524,2.3129,3399.7,3398.4,2.4683]
[1719755717525,3.59493696,3399.7,3398.4,2.4683]
[1719755717723,2.3129,3399.5,3398.8,0.851]
[1719755718486,2.3129,3399.5,3399.0,0.851]
[1719755724545,2.3129,3399.5,3399.2,0.851]
[1719755726661,3.0,3399.8,3399.2,0.851]
[1719755726862,2.3129,3399.7,3399.2,0.851]
[1719755731082,2.3129,3399.7,3398.7,2.4683]
[1719755731278,2.3129,3399.7,3399.0,0.851]
[1719755732367,2.3129,3399.7,3398.8,0.851]
[1719755742353,2.3129,3399.7,3398.4,2.2778]
[1719755742512,2.3129,3399.7,3398.9,0.851]
[1719755749466,2.3129,3399.7,3398.4,2.2778]
[1719755749677,2.3129,3399.7,3398.5,0.24258]
[1719755749971,2.3129,3399.7,3398.9,0.851]
[1719755767952,2.3129,3399.7,3399.1,0.851]
[1719755783177,2.3129,3399.7,3399.3,0.851]
[1719755783354,2.3129,3399.7,3399.4,0.851]
[1719755787090,2.3129,3399.7,3399.0,2.3974]
[1719755787396,2.3129,3399.7,3399.3,0.851]
[1719755792610,2.3129,3399.7,3399.1,0.851]
[1719755819063,2.3129,3399.7,3398.8,2.4329]
[1719755819263,2.3129,3399.7,3398.9,1.09429]
[1719755819489,2.3129,3399.7,3399.1,0.851]
[1719755844643,2.3129,3399.7,3398.6,2.4629]
[1719755844839,2.3129,3399.7,3399.0,0.851]
[1719755856689,2.3129,3399.7,3399.2,0.851]
[1719755856849,4.31418387,3399.8,3399.6,0.851]
[1719755856850,1.31418387,3399.8,3399.6,0.851]
[1719755857046,9.6977,3399.9,3399.6,0.851]
[1719755861060,2.3677,3399.9,3399.6,0.851]
[1719755865754,2.3796,3400.1,3399.6,0.851]
[1719755869298,2.3796,3400.1,3399.7,0.851]
[1719755882091,3.0,3400.3,3399.9,0.851]
[1719755882459,2.4656,3400.4,3399.9,0.851]
[1719755886638,5.4656,3400.6,3399.9,0.851]
[1719755890194,5.4656,3400.6,3399.9,3.199]
[1719755894314,3.0,3400.6,3399.9,3.199]
[1719755896110,7.33,3400.7,3400.1,0.851]
[1719755896426,7.33,3400.7,3400.3,0.851]
[1719755896857,7.33,3400.7,3400.5,0.851]
[1719755897018,7.33,3400.7,3400.6,0.3199]
[1719755898462,7.33,3400.7,3400.6,2.348]
[1719755901226,7.33,3400.7,3400.3,0.851]
[1719755902216,7.33,3400.7,3400.2,2.348]
[1719755902554,7.33,3400.7,3400.4,0.851]
[1719755902755,7.33,3400.7,3400.4,1.1709]
[1719755904128,7.33,3400.7,3399.9,2.348]
[1719755904334,2.3493,3400.6,3399.9,2.348]
[1719755904516,2.3493,3400.6,3400.1,0.851]
[1719755906465,2.3493,3400.6,3400.3,0.851]
[1719755908171,2.3493,3400.6,3399.9,2.348]
[1719755908172,2.3493,3400.6,3400.5,0.851]
[1719755908340,7.33,3400.7,3400.2,2.4663]
[1719755908673,7.33,3400.7,3400.4,0.851]
[1719755909576,7.33,3400.7,3400.0,2.7011]
[1719755909577,7.33,3400.7,3400.6,0.851]
[1719755909871,7.33,3400.7,3400.6,1.18273]
[1719755920658,9.6796,3401.4,3400.6,1.18273]
[1719755920858,3.0,3401.3,3400.6,1.18273]
[1719755924390,3.0,3401.3,3400.6,0.851]
[1719755926849,2.3496,3401.2,3400.5,0.851]
[1719755929552,2.3496,3401.2,3400.0,2.5491]
[1719755929750,2.3496,3401.2,3400.5,0.851]
[1719755929951,2.4159,3400.9,3399.5,2.3143]
[1719755930271,0.43103696,3400.8,3400.1,0.851]
[1719755930479,3.43103696,3400.8,3399.5,2.3143]
[1719755930682,3.43103696,3400.8,3400.1,0.851]
[1719755930883,0.6697937,3400.7,3400.1,0.851]
[1719755931973,1.10083066,3400.7,3400.1,0.851]
[1719755935290,0.43103696,3400.7,3400.1,0.851]
[1719755940265,2.4159,3400.6,3400.1,0.851]
[1719755945690,2.4159,3400.6,3400.3,0.851]
[1719755949696,2.4159,3400.6,3399.8,2.3143]
[1719755949936,2.4159,3400.6,3400.1,0.851]
[1719755955151,2.4159,3400.6,3399.8,2.3143]
[1719755955357,2.4159,3400.6,3400.0,0.851]
[1719755955591,2.4159,3400.6,3400.2,0.851]
[1719755958226,2.4159,3400.6,3399.9,0.23143]
[1719755958434,2.4159,3400.6,3400.2,0.851]
[1719755962321,2.4159,3400.6,3399.9,0.23143]
[1719755962662,2.4159,3400.6,3400.2,0.851]
[1719755963013,3.0,3400.9,3400.2,0.851]
[1719755963361,7.33,3401.0,3400.8,0.851]
[1719755963569,7.33,3401.0,3400.3,2.437]
[1719755963856,9.7271,3401.0,3400.6,0.851]
[1719755965222,7.33,3401.0,3399.8,2.437]
[1719755965539,7.33,3401.0,3400.9,0.851]
[1719755966390,7.33,3401.0,3400.0,2.437]
[1719755966921,7.33,3401.0,3400.7,0.851]
[1719755968483,2.3971,3401.1,3400.0,2.437]
[1719755968797,2.3971,3401.1,3400.6,0.851]
[1719755970003,2.3971,3401.1,3400.1,0.29807]
[1719755970193,2.3971,3401.1,3400.6,0.851]
[1719755976498,3.0,3401.4,3400.8,0.851]
[1719755976698,6.0283299,3401.7,3399.9,0.5437]
[1719755976699,3.0,3401.6,3401.1,0.851]
[1719755977717,3.0,3401.6,3400.9,0.851]
[1719755980774,2.84393647,3401.6,3400.9,0.851]
[1719755981185,2.84393647,3401.6,3401.1,0.851]
[1719755985511,2.84393647,3401.6,3400.5,2.4915]
[1719755985512,2.84393647,3401.6,3400.9,0.851]
[1719755985676,2.4741,3401.5,3400.9,0.851]
[1719755986641,3.3251,3401.4,3399.6,2.4915]
[1719755986920,3.3251,3401.4,3400.4,0.851]
[1719755987224,3.3251,3401.4,3400.6,0.851]
[1719755987225,2.4741,3401.4,3400.6,0.851]
[1719755989527,2.4741,3401.4,3400.8,0.851]
[1719755990892,2.4741,3401.4,3401.0,0.851]
[1719755992117,2.4741,3401.4,3401.2,0.851]
[1719755992321,2.84393647,3401.6,3401.2,0.851]
[1719755992634,5.31434413,3401.7,3401.2,0.851]
[1719755992989,5.31434413,3401.7,3401.0,0.851]
[1719755994282,2.4951,3401.6,3400.2,2.4707]
[1719755994521,5.4951,3401.6,3400.8,0.851]
[1719755996485,5.4951,3401.6,3400.2,2.4707]
[1719755996689,5.4951,3401.6,3400.8,0.851]
[1719755997028,0.99734466,3401.5,3400.8,0.851]
[1719755997220,3.99734466,3401.5,3400.8,0.851]
[1719756000262,3.0,3401.5,3400.8,0.851]
[1719756000414,5.4951,3401.6,3401.0,0.851]
[1719756001309,5.4951,3401.6,3401.3,0.851]
[1719756002053,5.4951,3401.6,3401.1,0.851]
[1719756003442,5.4951,3401.6,3400.9,0.851]
[1719756010433,5.4951,3401.6,3401.0,0.851]
[1719756017778,5.4951,3401.6,3401.2,0.851]
[1719756018470,2.31434413,3401.7,3401.0,2.2827]
[1719756018471,2.31434413,3401.7,3401.4,0.851]
[1719756018719,2.31434413,3401.7,3401.6,0.851]
[1719756019370,2.31434413,3401.7,3401.4,0.851]
[1719756021513,2.31434413,3401.7,3401.2,0.851]
[1719756021724,0.41844721,3401.6,3401.2,0.851]
[1719756023215,0.41844721,3401.6,3401.4,0.851]
[1719756024605,0.41840998,3401.6,3401.4,0.851]
[1719756027790,2.31434413,3401.7,3401.5,0.31337]
[1719756028017,2.31434413,3401.7,3401.6,0.851]
[1719756036328,2.31434413,3401.7,3401.6,3.32]
[1719756040549,2.31434413,3401.7,3401.6,0.851]
[1719756040758,2.31434413,3401.7,3401.6,1.183]
[1719756045380,2.31434413,3401.7,3401.6,0.851]
[1719756047841,2.31434413,3401.7,3401.6,3.2576]
[1719756049741,2.31434413,3401.7,3400.7,1.177717]
[1719756049742,2.31434413,3401.7,3401.4,2.4066]
[1719756049944,2.31434413,3401.7,3401.6,0.851]
[1719756050194,2.31434413,3401.7,3401.6,1.17676]
[1719756050483,2.31434413,3401.7,3401.6,0.851]
[1719756050987,2.31434413,3401.7,3400.9,2.4066]
[1719756051191,2.31434413,3401.7,3401.6,0.851]
[1719756052467,2.31434413,3401.7,3401.0,0.55]
[1719756052648,2.31434413,3401.7,3401.6,0.851]
[1719756056807,2.31434413,3401.7,3401.1,0.29566]
[1719756057127,2.31434413,3401.7,3401.6,0.851]
[1719756058762,2.31434413,3401.7,3401.1,0.29566]
[1719756059057,2.3053,3401.6,3401.5,0.851]
[1719756059348,2.31434413,3401.7,3401.5,0.851]
[1719756062435,2.31434413,3401.7,3401.6,0.32576]
[1719756062941,2.31434413,3401.7,3401.6,1.17676]
[1719756065154,2.31434413,3401.7,3401.6,0.32576]
[1719756065363,2.31434413,3401.7,3401.6,1.17676]
[1719756072195,7.33,3403.2,3401.7,2.351]
[1719756072352,1.79595896,3405.2,3401.7,2.351]
[1719756072353,0.41755683,3403.1,3402.0,2.351]
[1719756072548,0.41739853,3403.4,3403.1,0.851]
[1719756074396,2.3437,3403.5,3403.1,0.851]
[1719756074548,0.41727651,3403.4,3403.1,0.851]
[1719756074751,2.3437,3403.5,3402.5,2.351]
[1719756075064,2.3437,3403.5,3403.2,0.851]
[1719756075065,0.41724641,3403.4,3403.2,0.851]
[1719756075465,2.3437,3403.5,3403.2,0.851]
[1719756075861,0.41727245,3403.4,3403.2,0.851]
[1719756076464,2.3437,3403.5,3403.2,0.851]
[1719756076667,0.23876986,3403.4,3403.2,0.851]
[1719756077383,0.23876986,3403.4,3402.5,2.351]
[1719756077582,2.3437,3403.5,3403.2,0.851]
[1719756079101,2.3437,3403.5,3403.2,0.999]
[1719756080277,2.3437,3403.5,3403.2,0.148]
[1719756083984,2.3437,3403.5,3403.3,0.851]
[1719756087029,5.3437,3403.7,3403.3,0.851]
[1719756087183,5.3437,3403.7,3403.2,0.148]
[1719756088401,5.3437,3403.7,3403.5,0.851]
[1719756089291,3.0,3403.7,3403.5,0.851]
[1719756089491,3.0,3403.7,3403.3,0.851]
[1719756093217,3.0,3403.7,3403.2,0.148]
[1719756093924,2.2832,3403.5,3403.2,0.148]
[1719756094124,0.53271986,3403.4,3403.2,0.148]
[1719756095477,2.2832,3403.5,3403.2,0.148]
[1719756095986,2.2832,3403.5,3403.2,0.999]
[1719756098072,2.2832,3403.5,3403.2,0.148]